bitfinex/quotes_BTCUSD_20250314
["timestamp","ask_amount","ask_price","bid_price","bid_amount"]
[1741977559098,0.0001694,84830.0,84829.0,0.14146678]
[1741977559523,0.0001694,84830.0,84829.0,0.14446678]
[1741977559814,0.0001694,84830.0,84829.0,0.15956853]
[1741977560025,0.0001694,84830.0,84829.0,0.17175869]
[1741977560453,0.0001694,84830.0,84829.0,0.15697069]
[1741977560754,0.0001694,84830.0,84829.0,0.22263479]
[1741977560958,0.0001694,84830.0,84829.0,0.47619079]
[1741977561150,0.0001694,84830.0,84829.0,0.47319079]
[1741977561328,0.0001694,84830.0,84829.0,0.46719079]
[1741977561539,0.0001694,84830.0,84829.0,0.20812106]
[1741977561749,0.0001694,84830.0,84829.0,0.12842106]
[1741977562131,0.0001694,84830.0,84829.0,0.06475696]
[1741977562341,0.0001694,84830.0,84829.0,0.07654496]
[1741977562945,0.0001694,84830.0,84829.0,0.065588]
[1741977563588,0.0001694,84830.0,84829.0,0.0538]
[1741977563946,0.0001694,84830.0,84829.0,0.065588]
[1741977564265,0.0001694,84830.0,84829.0,0.071588]
[1741977564468,0.0001694,84830.0,84829.0,0.012]
[1741977565277,0.0001694,84830.0,84829.0,0.023788]
[1741977566114,0.0001694,84830.0,84829.0,0.012]
[1741977566329,0.0119574,84830.0,84829.0,0.012]
[1741977566781,0.3119574,84830.0,84829.0,0.012]
[1741977567526,0.3119574,84830.0,84829.0,0.006]
[1741977568147,0.3119574,84830.0,84806.0,0.0003388]
[1741977568148,0.01179,84813.0,84806.0,0.0003388]
[1741977568539,0.011789,84821.0,84815.0,0.01179]
[1741977568753,0.247594,84816.0,84810.0,0.011791]
[1741977568960,0.235815,84812.0,84807.0,0.235828]
[1741977569092,0.01179,84812.0,84806.0,0.0003388]
[1741977569304,0.01179,84812.0,84806.0,0.2479608]
[1741977569502,0.235811,84814.0,84807.0,0.011791]
[1741977569721,0.011789,84822.0,84816.0,0.01179]
[1741977569942,0.247579,84821.0,84814.0,0.23581]
[1741977570148,0.247579,84821.0,84814.0,0.2476]
[1741977570366,0.247585,84819.0,84813.0,0.01179]
[1741977570773,0.011789,84819.0,84813.0,0.247601]
[1741977570911,0.235782,84824.0,84813.0,0.247601]
[1741977571105,0.011789,84820.0,84815.0,0.235807]
[1741977571323,0.011789,84821.0,84815.0,0.247597]
[1741977571545,0.247578,84822.0,84815.0,0.247597]
[1741977571742,0.247578,84822.0,84815.0,0.235807]
[1741977571945,0.235793,84820.0,84813.0,0.01479]
[1741977572213,0.235782,84824.0,84816.0,0.01179]
[1741977572361,0.011789,84822.0,84816.0,0.247593]
[1741977572565,0.235782,84824.0,84817.0,0.010517]
[1741977572825,0.235788,84822.0,84816.0,0.235803]
[1741977573097,0.011789,84821.0,84815.0,0.003]
[1741977573471,0.235799,84818.0,84815.0,0.003]
[1741977573670,0.235799,84818.0,84808.0,0.365124]
[1741977573855,0.01179,84815.0,84808.0,0.365124]
[1741977574028,0.01179,84817.0,84813.0,0.003]
[1741977574258,0.235785,84823.0,84813.0,0.250602]
[1741977574432,0.984563,84831.0,84813.0,0.250602]
[1741977574433,0.27411685,84830.0,84818.0,0.011789]
[1741977574651,0.247564,84827.0,84820.0,0.23579]
[1741977574853,0.011788,84827.0,84819.0,0.011789]
[1741977575053,0.235779,84826.0,84821.0,0.23579]
[1741977575394,0.011788,84827.0,84819.0,0.247584]
[1741977575594,0.235776,84826.0,84820.0,0.23579]
[1741977575842,0.0001694,84830.0,84824.0,0.011789]
[1741977576043,0.0001694,84830.0,84825.0,0.011788]
[1741977576194,0.0001694,84830.0,84825.0,0.247566]
[1741977576397,0.0001694,84830.0,84825.0,0.235778]
[1741977576716,0.0001694,84830.0,84824.0,0.011789]
[1741977576931,0.247556,84829.0,84822.0,0.247574]
[1741977577127,0.0001694,84830.0,84828.0,0.23577]
[1741977577358,0.0001694,84830.0,84829.0,0.011788]
[1741977579126,0.0001694,84830.0,84829.0,0.015788]
[1741977579325,0.0001694,84830.0,84829.0,0.019788]
[1741977579967,0.0001694,84830.0,84829.0,0.015788]
[1741977580416,0.0001694,84830.0,84829.0,0.019788]
[1741977581212,0.0001694,84830.0,84829.0,0.015788]
[1741977581584,0.0001694,84830.0,84829.0,0.019788]
[1741977581787,0.0001694,84830.0,84829.0,0.0190887]
[1741977581995,0.0001694,84830.0,84829.0,0.0150887]
[1741977582192,0.0001694,84830.0,84829.0,0.004]
[1741977582389,0.011788,84825.0,84818.0,0.0482]
[1741977582588,0.011789,84824.0,84818.0,0.0482]
[1741977583272,0.247578,84822.0,84818.0,0.0482]
[1741977583445,0.011789,84821.0,84814.0,0.235808]
[1741977583644,0.011789,84820.0,84814.0,0.235808]
[1741977583845,0.24759,84818.0,84812.0,0.235815]
[1741977584048,0.24759,84818.0,84813.0,0.2476]
[1741977584261,0.235785,84823.0,84816.0,0.01179]
[1741977584432,0.235785,84823.0,84819.0,0.235795]
[1741977584686,0.235782,84825.0,84819.0,0.235795]
[1741977585193,0.011788,84826.0,84822.0,0.235787]
[1741977585353,0.011788,84828.0,84822.0,0.235787]
[1741977585557,0.23578,84825.0,84820.0,0.235791]
[1741977586264,0.23578,84825.0,84822.0,0.003]
[1741977586670,0.23578,84825.0,84820.0,0.235791]
[1741977586938,0.247573,84824.0,84820.0,0.003]
[1741977587321,0.247573,84824.0,84818.0,0.235796]
[1741977587493,0.247576,84823.0,84822.0,0.002]
[1741977587699,0.247576,84823.0,84822.0,0.005]
[1741977587897,0.235777,84826.0,84822.0,0.005]
[1741977588248,0.247573,84824.0,84822.0,0.003]
[1741977589216,0.235814,84813.0,84808.0,0.316626]
[1741977589425,0.01179,84814.0,84809.0,0.235823]
[1741977589592,0.311789,84819.0,84810.0,0.011791]
[1741977589794,0.011789,84818.0,84811.0,0.01179]
[1741977590031,0.235773,84828.0,84822.0,0.003]
[1741977590226,0.535781,84825.0,84822.0,0.003]
[1741977590431,0.235765,84830.0,84823.0,0.235785]
[1741977590626,0.1716766,84834.0,84822.0,0.003]
[1741977590898,0.235776,84827.0,84819.0,0.235796]
[1741977591176,0.235797,84819.0,84811.0,0.01179]
[1741977591388,0.011789,84820.0,84814.0,0.235809]
[1741977591565,0.247571,84824.0,84816.0,0.01179]
[1741977591861,0.247571,84824.0,84817.0,0.235801]
[1741977592072,0.247583,84820.0,84819.0,0.0003392]
[1741977592266,0.011789,84821.0,84819.0,0.0003392]
[1741977592469,0.247571,84824.0,84819.0,0.0003392]
[1741977592681,0.247563,84827.0,84822.0,0.003]
[1741977592891,0.247563,84827.0,84820.0,0.235793]
[1741977593098,0.247567,84826.0,84820.0,0.235793]
[1741977593321,0.235782,84824.0,84819.0,0.0003392]
[1741977593450,0.235782,84824.0,84819.0,0.2361322]
[1741977593876,0.235782,84824.0,84822.0,0.003]
[1741977594081,0.235782,84824.0,84819.0,0.2361322]
[1741977594289,0.011788,84827.0,84819.0,0.2361322]
[1741977594495,0.011788,84826.0,84820.0,0.003]
[1741977595353,0.011788,84826.0,84820.0,0.238793]
[1741977595928,0.011788,84826.0,84822.0,0.003]
[1741977596334,0.011788,84825.0,84820.0,0.238793]
[1741977596747,0.0119576,84829.0,84821.0,0.011789]
[1741977596945,0.011788,84828.0,84823.0,0.235782]
[1741977597322,0.247561,84828.0,84823.0,0.235782]
[1741977597529,0.0001696,84829.0,84823.0,0.235785]
[1741977597745,0.0001696,84829.0,84828.0,0.247559]
[1741977597920,0.0001696,84829.0,84828.0,0.323959]
[1741977599984,0.0001696,84829.0,84828.0,0.329959]
[1741977600329,0.0001696,84829.0,84828.0,0.335959]
[1741977600532,0.0001696,84829.0,84828.0,0.382959]
[1741977601705,0.0001696,84829.0,84828.0,0.376959]
[1741977602020,0.0001696,84829.0,84828.0,1.876959]
[1741977602210,0.0001696,84829.0,84828.0,1.882959]
[1741977602366,0.0001696,84829.0,84828.0,0.382959]
[1741977603133,0.0001696,84829.0,84828.0,0.376959]
[1741977603344,0.0001696,84829.0,84828.0,0.382959]
[1741977603728,0.0001696,84829.0,84828.0,0.370959]
[1741977603923,0.0001696,84829.0,84828.0,0.376959]
[1741977604470,0.0001696,84829.0,84828.0,0.382959]
[1741977604874,0.0001696,84829.0,84828.0,0.376959]
[1741977605524,0.0001696,84829.0,84828.0,0.3772982]
[1741977605705,0.0001696,84829.0,84828.0,0.3832982]
[1741977606580,0.0001696,84829.0,84828.0,0.3772982]
[1741977607183,0.0001696,84829.0,84828.0,0.3712982]
[1741977607394,2e-07,84834.0,84833.0,0.552544]
[1741977607591,2e-07,84834.0,84833.0,0.729144]
[1741977608106,2e-07,84834.0,84833.0,0.679144]
[1741977608352,2e-07,84834.0,84833.0,0.729144]
[1741977608757,2e-07,84834.0,84833.0,0.735144]
[1741977608955,2e-07,84834.0,84833.0,0.741144]
[1741977610186,2e-07,84834.0,84833.0,2.241144]
[1741977611058,0.23567,84865.0,84858.0,0.011784]
[1741977611245,0.236459,84869.0,84858.0,0.011784]
[1741977611246,0.01441713,84868.0,84865.0,0.247449]
[1741977611396,0.0008,84869.0,84868.0,0.011783]
[1741977613666,0.0008,84869.0,84865.0,0.241666]
[1741977613995,0.23646,84869.0,84863.0,0.247454]
[1741977614142,0.0008,84869.0,84867.0,0.011783]
[1741977614350,0.0008,84869.0,84868.0,0.016783]
[1741977614530,0.0008,84869.0,84868.0,0.011783]
[1741977614914,0.0008,84869.0,84868.0,0.016783]
[1741977615456,0.0008,84869.0,84868.0,0.021783]
[1741977618000,0.0009696,84869.0,84868.0,0.021783]
[1741977619532,0.0009696,84869.0,84868.0,0.020783]
[1741977622140,0.0009696,84869.0,84868.0,0.01]
[1741977622366,0.0127516,84869.0,84868.0,0.01]
[1741977622592,0.0009696,84869.0,84868.0,0.01]
[1741977622951,0.0009696,84869.0,84868.0,0.021783]
[1741977623180,0.0009696,84869.0,84868.0,0.01]
[1741977623701,0.0009696,84869.0,84868.0,0.257443]
[1741977624523,0.0009696,84869.0,84868.0,0.01]
[1741977625950,0.02297836,84869.0,84868.0,0.01]
[1741977626653,0.02297836,84869.0,84868.0,0.24566]
[1741977626887,0.02297836,84869.0,84868.0,0.01]
[1741977628015,0.02297836,84869.0,84868.0,0.021783]
[1741977629273,0.0009696,84869.0,84868.0,0.021783]
[1741977629838,0.0009696,84869.0,84868.0,0.02077235]
[1741977633226,0.0009696,84869.0,84868.0,0.29881235]
[1741977633877,0.247374,84892.0,84885.0,0.247392]
[1741977634090,0.235598,84891.0,84886.0,0.247387]
[1741977634301,0.01409226,84902.0,84894.0,0.011779]
[1741977634555,0.02343041,84901.0,84891.0,0.011779]
[1741977634771,0.247354,84898.0,84891.0,0.011779]
[1741977635004,0.24736,84897.0,84891.0,0.247373]
[1741977635210,0.02343041,84901.0,84893.0,0.011779]
[1741977635424,0.011778,84898.0,84893.0,0.011779]
[1741977635831,0.247356,84898.0,84892.0,0.235591]
[1741977636079,0.011778,84898.0,84892.0,0.235591]
[1741977637030,0.31215945,84930.0,84892.0,0.235591]
[1741977637031,0.011776,84913.0,84899.0,0.011778]
[1741977637239,0.0001696,84915.0,84904.0,0.011778]
[1741977637461,0.0001696,84915.0,84901.0,0.011778]
[1741977637462,0.26174602,84912.0,84903.0,0.23556]
[1741977637640,0.26174602,84912.0,84903.0,0.247338]
[1741977637884,0.01443202,84912.0,84907.0,0.011777]
[1741977638105,0.011776,84914.0,84899.0,0.235571]
[1741977638310,0.235546,84910.0,84899.0,0.235571]
[1741977638523,0.235546,84910.0,84906.0,0.235552]
[1741977638524,0.2105156,84910.0,84906.0,0.235552]
[1741977638704,0.2222926,84910.0,84904.0,0.235557]
[1741977638912,0.247318,84911.0,84905.0,0.235555]
[1741977639337,0.011776,84912.0,84907.0,0.23555]
[1741977639549,0.54731,84914.0,84909.0,0.235544]
[1741977639758,0.235537,84913.0,84907.0,0.23555]
[1741977640180,0.235537,84912.0,84907.0,0.23555]
[1741977640388,0.01415282,84913.0,84908.0,0.235547]
[1741977640607,0.01415282,84913.0,84903.0,0.247339]
[1741977640608,0.01415282,84913.0,84903.0,0.235561]
[1741977640822,0.011777,84911.0,84905.0,0.003]
[1741977641059,0.011777,84910.0,84905.0,0.238555]
[1741977641336,0.247319,84911.0,84905.0,0.238554]
[1741977641516,0.247319,84911.0,84907.0,0.003]
[1741977641740,0.247319,84911.0,84906.0,0.235552]
[1741977641950,0.02203552,84910.0,84906.0,0.235552]
[1741977642181,0.02203552,84910.0,84907.0,0.235549]
[1741977642409,0.25758052,84910.0,84904.0,0.23556]
[1741977642641,0.26935752,84910.0,84907.0,0.003]
[1741977642858,0.311777,84909.0,84908.0,0.003]
[1741977643295,0.547326,84908.0,84907.0,0.003]
[1741977643524,0.547326,84908.0,84907.0,0.006]
[1741977643944,0.235563,84903.0,84898.0,0.235574]
[1741977644131,0.011778,84899.0,84894.0,0.011779]
[1741977644292,0.011778,84899.0,84894.0,0.247365]
[1741977644893,0.011779,84896.0,84890.0,0.247377]
[1741977645098,0.235589,84894.0,84888.0,0.235603]
[1741977645319,0.247364,84895.0,84894.0,0.005]
[1741977645520,0.547364,84895.0,84894.0,0.005]
[1741977645722,0.01178,84888.0,84881.0,0.011781]
[1741977645955,0.235599,84890.0,84884.0,0.01178]
[1741977646334,0.23562,84883.0,84878.0,0.247411]
[1741977646548,0.26188907,84883.0,84877.0,0.011781]
[1741977646955,0.011781,84882.0,84874.0,0.011782]
[1741977647383,0.011781,84880.0,84874.0,0.011782]
[1741977647586,0.011781,84882.0,84876.0,0.235636]
[1741977647806,0.247402,84882.0,84877.0,0.235632]
[1741977648374,0.3,84884.0,84878.0,0.23563]
[1741977648584,0.31178,84884.0,84879.0,0.011781]
[1741977649017,0.56172924,84884.0,84880.0,0.235626]
[1741977649237,0.56172924,84884.0,84878.0,0.23563]
[1741977649648,0.547397,84884.0,84879.0,0.235627]
[1741977649886,0.547397,84884.0,84879.0,0.239627]
[1741977650112,0.3,84882.0,84879.0,0.239627]
[1741977650338,0.3,84882.0,84879.0,0.235627]
[1741977650545,0.3,84882.0,84878.0,0.004]
[1741977650752,0.3,84882.0,84879.0,0.235627]
[1741977651174,0.3,84883.0,84879.0,0.235627]
[1741977651384,0.0001695,84969.0,84888.0,0.235604]
[1741977651385,0.0001696,84919.0,84888.0,0.235604]
[1741977651641,0.247379,84890.0,84884.0,0.235613]
[1741977651847,0.3,84889.0,84884.0,0.235613]
[1741977652051,0.01178,84886.0,84879.0,0.004]
[1741977652229,0.01178,84884.0,84879.0,0.004]
[1741977652435,0.3,84884.0,84880.0,0.235624]
[1741977652735,0.235618,84883.0,84879.0,0.004]
[1741977652909,0.3,84884.0,84881.0,0.011781]
[1741977653242,0.3,84884.0,84880.0,0.235625]
[1741977653446,0.31178,84886.0,84882.0,0.235619]
[1741977654199,0.01388457,84887.0,84885.0,0.01178]
[1741977654408,0.535587,84895.0,84889.0,0.235599]
[1741977654615,0.011779,84893.0,84885.0,0.01178]
[1741977654823,0.311779,84895.0,84885.0,0.01178]
[1741977655032,0.0138293,84893.0,84885.0,0.01178]
[1741977655212,0.311779,84895.0,84885.0,0.01178]
[1741977655429,0.547366,84895.0,84889.0,0.235601]
[1741977655645,0.3,84893.0,84889.0,0.235601]
[1741977655852,0.311779,84893.0,84886.0,0.235609]
[1741977656052,0.31399653,84893.0,84888.0,0.235604]
[1741977656270,0.54958853,84893.0,84888.0,0.235604]
[1741977656677,0.31399653,84893.0,84887.0,0.235605]
[1741977656877,0.011778,84902.0,84894.0,0.235586]
[1741977657229,0.011778,84900.0,84895.0,0.235583]
[1741977657618,0.235578,84898.0,84893.0,0.235588]
[1741977657831,0.3,84900.0,84894.0,0.235587]
[1741977658096,0.311778,84900.0,84894.0,0.235587]
[1741977658278,0.3,84900.0,84895.0,0.235582]
[1741977658516,0.235578,84898.0,84892.0,0.235592]
[1741977658727,0.235581,84897.0,84892.0,0.235592]
[1741977658950,0.235581,84897.0,84893.0,0.235588]
[1741977659189,0.535573,84900.0,84895.0,0.235583]
[1741977659393,0.547351,84900.0,84894.0,0.247366]
[1741977660018,0.547351,84900.0,84895.0,0.235583]
[1741977660225,0.235581,84897.0,84893.0,0.001]
[1741977660474,0.235587,84894.0,84893.0,0.001]
[1741977660644,0.235611,84886.0,84880.0,0.235624]
[1741977660887,0.011779,84890.0,84883.0,0.247396]
[1741977661157,0.247394,84885.0,84879.0,0.235627]
[1741977661379,0.235606,84888.0,84883.0,0.235616]
[1741977661549,0.01178,84886.0,84880.0,0.235624]
[1741977661758,0.011781,84882.0,84876.0,0.281036]
[1741977661965,0.247397,84884.0,84879.0,0.235628]
[1741977662147,0.2474,84883.0,84877.0,0.011781]
[1741977662342,0.011781,84881.0,84876.0,0.235636]
[1741977662579,0.235632,84879.0,84874.0,0.235642]
[1741977662908,0.235632,84879.0,84875.0,0.235638]
[1741977663093,0.235632,84879.0,84873.0,0.011782]
[1741977663094,0.2474,84883.0,84877.0,0.235633]
[1741977663273,0.31178,84884.0,84879.0,0.235626]
[1741977663474,0.547397,84884.0,84879.0,0.235626]
[1741977663703,0.235621,84882.0,84877.0,0.235633]
[1741977663915,0.3,84884.0,84877.0,0.011781]
[1741977664124,0.3,84884.0,84882.0,0.235619]
[1741977664335,0.235603,84889.0,84883.0,0.235616]
[1741977664741,0.247386,84888.0,84883.0,0.235616]
[1741977665246,0.235608,84887.0,84883.0,0.235616]
[1741977665462,0.01178,84888.0,84883.0,0.235616]
[1741977665879,0.01178,84888.0,84883.0,0.003]
[1741977665880,0.247389,84887.0,84883.0,0.003]
[1741977666414,0.247378,84890.0,84883.0,0.003]
[1741977666622,0.3,84890.0,84886.0,0.235608]
[1741977666892,0.3,84890.0,84883.0,0.003]
[1741977666893,0.311779,84890.0,84885.0,0.23561]
[1741977667101,0.247384,84889.0,84883.0,0.003]
[1741977667734,0.3,84893.0,84889.0,0.235601]
[1741977667942,0.3,84893.0,84890.0,0.235596]
[1741977668120,0.3,84893.0,84889.0,0.235601]
[1741977668523,0.3,84893.0,84891.0,0.235595]
[1741977668727,0.235592,84893.0,84887.0,0.235606]
[1741977668960,0.535595,84892.0,84890.0,0.0003388]
[1741977669193,0.535596,84891.0,84890.0,0.0023388]
[1741977669401,0.535596,84891.0,84890.0,0.0003388]
[1741977669606,0.3,84891.0,84890.0,0.0003388]
[1741977670328,0.3,84891.0,84890.0,0.0121178]
[1741977670585,0.235536,84913.0,84900.0,0.235568]
[1741977670758,0.0788,84914.0,84901.0,0.011778]
[1741977670958,0.0001694,84909.0,84907.0,0.23555]
[1741977671613,0.01430788,84909.0,84907.0,0.247327]
[1741977671854,0.0001694,84909.0,84907.0,0.23555]
[1741977672063,0.0001694,84909.0,84908.0,0.011777]
[1741977672484,0.0001694,84909.0,84908.0,0.06135466]
[1741977673306,0.011773,84939.0,84931.0,0.011774]
[1741977673551,0.011773,84939.0,84932.0,0.011774]
[1741977673761,0.011772,84942.0,84934.0,0.235476]
[1741977673984,0.011772,84941.0,84934.0,0.011773]
[1741977674206,0.01365303,84942.0,84940.0,0.011773]
[1741977674416,0.235455,84942.0,84936.0,0.011773]
[1741977674630,0.235453,84943.0,84938.0,0.011773]
[1741977674839,0.01361193,84942.0,84938.0,0.011773]
[1741977675048,0.247231,84941.0,84935.0,0.0458]
[1741977675233,0.247231,84941.0,84936.0,0.235471]
[1741977675547,0.011773,84938.0,84936.0,0.004]
[1741977675758,0.247238,84939.0,84935.0,0.0458]
[1741977675961,0.247236,84939.0,84935.0,0.0458]
[1741977676365,0.011773,84938.0,84935.0,0.0458]
[1741977676607,0.011773,84938.0,84936.0,0.005]
[1741977676806,0.247241,84937.0,84936.0,0.005]
[1741977676985,0.011773,84934.0,84926.0,0.011774]
[1741977677246,0.011775,84925.0,84917.0,0.011776]
[1741977677458,0.011775,84925.0,84920.0,0.011775]
[1741977677659,0.247278,84925.0,84918.0,0.247297]
[1741977677867,0.011775,84925.0,84921.0,0.235512]
[1741977678081,0.011775,84925.0,84920.0,0.011775]
[1741977678082,0.235498,84927.0,84920.0,0.011775]
[1741977678290,0.011774,84931.0,84925.0,0.247276]
[1741977678492,0.011774,84930.0,84925.0,0.235501]
[1741977679237,0.235496,84927.0,84920.0,0.011775]
[1741977679460,0.011775,84924.0,84918.0,0.241519]
[1741977679685,0.23551,84923.0,84918.0,0.006]
[1741977679883,0.011775,84920.0,84918.0,0.006]
[1741977680091,0.011776,84914.0,84907.0,0.247326]
[1741977680293,0.011777,84909.0,84902.0,0.14752]
[1741977680498,0.011777,84908.0,84902.0,0.011778]
[1741977680752,0.247329,84907.0,84900.0,0.235568]
[1741977680954,0.011778,84900.0,84896.0,0.02320403]
[1741977681157,0.011777,84905.0,84897.0,0.011778]
[1741977681450,0.235568,84901.0,84895.0,0.247361]
[1741977681651,0.247346,84901.0,84895.0,0.247361]
[1741977682017,0.011778,84899.0,84893.0,0.247369]
[1741977682221,0.011778,84897.0,84891.0,0.247374]
[1741977682437,0.23559,84893.0,84890.0,0.0003388]
[1741977682648,0.011779,84892.0,84890.0,0.0003388]
[1741977682863,0.23559,84893.0,84890.0,0.0003388]
[1741977683050,0.011779,84894.0,84890.0,0.0003388]
[1741977683481,0.247352,84899.0,84893.0,0.004]
[1741977683893,0.247356,84898.0,84893.0,0.011779]
[1741977684115,0.05,84932.0,84893.0,0.011779]
[1741977684116,0.3,84901.0,84896.0,0.235579]
[1741977684315,0.3,84901.0,84898.0,0.235575]
[1741977684737,0.3,84901.0,84898.0,0.247353]
[1741977684951,0.3,84901.0,84898.0,0.235575]
[1741977685104,0.011778,84901.0,84896.0,0.011779]
[1741977685305,0.311778,84901.0,84896.0,0.247359]
[1741977685713,0.235579,84898.0,84891.0,0.247373]
[1741977685936,0.011779,84896.0,84893.0,0.006]
[1741977686140,0.547366,84894.0,84893.0,0.006]
[1741977686369,0.547375,84891.0,84890.0,0.0003388]
[1741977687907,0.547375,84891.0,84890.0,0.0013388]
[1741977688120,0.56191585,84891.0,84890.0,0.0003388]
[1741977690069,0.011782,84869.0,84868.0,0.000339]
[1741977690779,0.56140424,84869.0,84868.0,0.000339]
[1741977691121,0.56086185,84869.0,84868.0,0.003339]
[1741977692367,0.56086185,84869.0,84868.0,0.006339]
[1741977694231,0.55586185,84869.0,84868.0,0.006339]
[1741977696576,0.55586185,84869.0,84819.0,0.4769282]
[1741977696577,0.235743,84838.0,84834.0,0.046739]
[1741977696783,0.011787,84835.0,84834.0,0.000339]
[1741977696950,0.311787,84835.0,84834.0,0.000339]
[1741977697365,0.32557967,84835.0,84834.0,0.000339]
[1741977697926,0.32557967,84835.0,84834.0,0.006339]
[1741977698369,0.32557967,84835.0,84834.0,0.000339]
[1741977698370,0.32487711,84835.0,84834.0,0.000339]
[1741977698807,0.32487711,84835.0,84834.0,0.002339]
[1741977699838,0.32487711,84835.0,84834.0,0.004339]
[1741977700038,0.33941796,84835.0,84834.0,0.004339]
[1741977700447,0.33941796,84835.0,84834.0,0.002339]
[1741977700651,0.33941796,84835.0,84834.0,0.004339]
[1741977701095,0.33941796,84835.0,84834.0,0.000339]
[1741977701903,0.34843841,84835.0,84834.0,0.000339]
[1741977702519,0.34843841,84835.0,84834.0,0.002339]
[1741977702954,0.34843841,84835.0,84834.0,0.000339]
[1741977703378,0.547556,84829.0,84828.0,0.0003392]
[1741977703583,0.56209685,84829.0,84828.0,0.0003392]
[1741977704656,0.2654166,84809.0,84808.0,0.0003388]
[1741977704897,0.5654166,84809.0,84808.0,0.0003388]
[1741977707028,0.5654166,84809.0,84808.0,0.0053388]
[1741977707253,0.5654166,84809.0,84808.0,0.0103388]
[1741977707462,0.3178016,84809.0,84808.0,0.0103388]
[1741977707673,0.0178016,84809.0,84808.0,0.0221298]
[1741977707874,0.0178016,84809.0,84808.0,1.5221298]
[1741977708494,0.0178016,84809.0,84808.0,0.0221298]
[1741977710265,0.3,84817.0,84815.0,0.235805]
[1741977710472,0.011787,84838.0,84828.0,0.235769]
[1741977710697,0.01379267,84835.0,84830.0,0.235764]
[1741977710912,0.011788,84832.0,84827.0,0.235771]
[1741977711124,0.3,84831.0,84826.0,0.247564]
[1741977711344,0.311788,84832.0,84827.0,0.235771]
[1741977711741,0.3,84832.0,84829.0,0.235767]
[1741977711944,0.3,84832.0,84827.0,0.247559]
[1741977711945,0.01401022,84835.0,84833.0,0.011787]
[1741977712153,0.01401022,84835.0,84832.0,0.235758]
[1741977712387,0.011787,84836.0,84830.0,0.247551]
[1741977712600,0.247553,84831.0,84825.0,0.235776]
[1741977713020,0.3,84827.0,84817.0,0.24759]
[1741977713244,0.235792,84821.0,84816.0,0.235802]
[1741977713447,0.3,84827.0,84824.0,0.235779]
[1741977713652,0.3,84827.0,84821.0,0.23579]
[1741977713858,0.3,84827.0,84826.0,0.001]
[1741977714016,0.3,84827.0,84822.0,0.011789]
[1741977714017,0.3,84827.0,84823.0,0.235782]
[1741977714448,0.311788,84827.0,84821.0,0.235789]
[1741977714768,0.247564,84826.0,84820.0,0.235791]
[1741977714967,0.011788,84825.0,84821.0,0.235788]
[1741977715173,0.311788,84827.0,84823.0,0.004]
[1741977715377,0.3,84828.0,84823.0,0.004]
[1741977715583,0.3,84828.0,84827.0,0.247561]
[1741977715729,0.011787,84834.0,84830.0,0.235764]
[1741977715730,0.3,84834.0,84830.0,0.235764]
[1741977715931,0.3,84832.0,84828.0,0.235769]
[1741977716141,0.01361667,84835.0,84831.0,0.24755]
[1741977716348,0.247534,84837.0,84831.0,0.235762]
[1741977716544,0.011787,84836.0,84831.0,0.235762]
[1741977716749,0.011787,84836.0,84835.0,0.011787]
[1741977716750,0.01372827,84836.0,84835.0,0.011787]
[1741977716947,0.984476,84848.0,84835.0,0.011787]
[1741977716948,0.247505,84847.0,84839.0,0.011787]
[1741977717153,0.247505,84847.0,84840.0,0.235737]
[1741977717154,0.247508,84846.0,84840.0,0.235737]
[1741977717412,0.01351443,84847.0,84842.0,0.235729]
[1741977717588,0.75753943,84848.0,84846.0,0.011786]
[1741977717788,0.74876,84848.0,84841.0,0.235734]
[1741977717983,0.311785,84847.0,84841.0,0.235734]
[1741977718206,0.74876,84848.0,84847.0,0.011785]
[1741977718412,0.235692,84857.0,84851.0,0.235705]
[1741977718692,0.011783,84862.0,84853.0,0.011785]
[1741977718885,0.02572885,84857.0,84850.0,0.247495]
[1741977719056,0.247479,84856.0,84850.0,0.247495]
[1741977720129,0.235707,84851.0,84846.0,0.235721]
[1741977720334,0.011785,84847.0,84841.0,0.001]
[1741977720538,0.01356616,84846.0,84841.0,0.001]
[1741977720743,0.247518,84842.0,84841.0,0.001]
[1741977721354,0.011786,84842.0,84841.0,0.001]
[1741977721789,0.011786,84842.0,84837.0,0.011787]
[1741977721991,0.011786,84842.0,84838.0,0.235742]
[1741977722210,0.011787,84838.0,84833.0,0.011787]
[1741977722340,0.247519,84842.0,84835.0,0.011787]
[1741977722549,0.247519,84842.0,84836.0,0.247533]
[1741977722755,0.247519,84842.0,84841.0,0.005]
[1741977722946,0.011786,84841.0,84837.0,0.005]
[1741977723155,0.3,84845.0,84839.0,0.011787]
[1741977723369,0.235725,84845.0,84839.0,0.247525]
[1741977723988,0.235734,84842.0,84838.0,0.005]
[1741977724660,0.3,84844.0,84842.0,0.23573]
[1741977724859,0.547515,84844.0,84841.0,0.005]
[1741977725260,0.547515,84844.0,84838.0,0.235741]
[1741977725615,0.011786,84844.0,84839.0,0.235738]
[1741977725849,0.00178016,84846.0,84845.0,0.247509]
[1741977726085,0.00178016,84846.0,84845.0,0.235723]
[1741977726333,0.23572,84847.0,84842.0,0.235729]
[1741977726572,0.247502,84848.0,84843.0,0.235727]
[1741977727651,0.247502,84848.0,84840.0,0.235732]
[1741977727652,0.247505,84847.0,84840.0,0.235732]
[1741977727812,0.011786,84840.0,84834.0,0.235753]
[1741977728017,0.011787,84838.0,84831.0,0.283361]
[1741977728829,0.3,84840.0,84835.0,0.011787]
[1741977729231,0.3,84841.0,84837.0,0.235746]
[1741977729439,0.3,84841.0,84838.0,0.247527]
[1741977729805,0.3,84841.0,84837.0,0.235746]